bitfinex/quotes_BTCUSD_20240817
["timestamp","ask_amount","ask_price","bid_price","bid_amount"]
[1723915891178,0.000825,59706.0,59705.0,1.09287654]
[1723915891378,0.144925,59706.0,59705.0,0.670087]
[1723915891962,0.144925,59706.0,59705.0,0.656087]
[1723915892301,0.144925,59706.0,59705.0,0.670087]
[1723915892505,0.144925,59706.0,59705.0,0.770087]
[1723915892912,0.144925,59706.0,59705.0,0.756087]
[1723915893131,0.144925,59706.0,59705.0,0.765087]
[1723915893336,0.144925,59706.0,59705.0,0.737087]
[1723915893542,0.144925,59706.0,59705.0,0.751087]
[1723915893745,0.144925,59706.0,59705.0,0.742087]
[1723915893949,0.144925,59706.0,59705.0,0.740087]
[1723915894368,0.144925,59706.0,59705.0,0.751087]
[1723915895179,0.144925,59706.0,59705.0,1.002322]
[1723915895830,0.144925,59706.0,59705.0,0.751087]
[1723915896561,0.144925,59706.0,59705.0,1.002322]
[1723915897144,0.144925,59706.0,59705.0,0.751087]
[1723915897534,0.144925,59706.0,59705.0,1.002322]
[1723915901044,0.000825,59706.0,59705.0,1.43087654]
[1723915901245,0.000825,59706.0,59705.0,1.45207224]
[1723915901466,0.000825,59706.0,59705.0,1.70530724]
[1723915903078,0.000825,59706.0,59705.0,1.95654224]
[1723915903284,0.000825,59706.0,59705.0,1.95854224]
[1723915903480,0.000825,59706.0,59705.0,1.93554224]
[1723915903680,0.000825,59706.0,59705.0,1.94954224]
[1723915903885,0.000825,59706.0,59705.0,1.9943802]
[1723915904550,0.000825,59706.0,59705.0,2.00356442]
[1723915904720,0.000825,59706.0,59705.0,2.09346915]
[1723915904889,0.000825,59706.0,59705.0,2.18565997]
[1723915905285,0.000825,59706.0,59705.0,1.89407915]
[1723915905805,0.000825,59706.0,59705.0,1.88007915]
[1723915906126,0.000825,59706.0,59705.0,1.89407915]
[1723915906524,0.000825,59706.0,59705.0,1.88007321]
[1723915906730,0.000825,59706.0,59705.0,1.86607321]
[1723915906932,0.000825,59706.0,59705.0,1.89407321]
[1723915907338,0.000825,59706.0,59705.0,1.82702289]
[1723915907504,0.000825,59706.0,59705.0,1.95263989]
[1723915908205,0.000825,59706.0,59705.0,1.60522821]
[1723915908405,0.000825,59706.0,59705.0,1.60722821]
[1723915908630,0.000825,59706.0,59705.0,1.60922821]
[1723915909075,0.000825,59706.0,59705.0,1.86046321]
[1723915909860,0.000825,59706.0,59705.0,1.85125787]
[1723915913372,1e-08,59706.0,59705.0,1.93471316]
[1723915914342,1e-08,59706.0,59705.0,1.88486787]
[1723915915351,1e-08,59706.0,59705.0,2.33116976]
[1723915916355,1e-08,59706.0,59705.0,2.35609241]
[1723915916738,1e-08,59706.0,59705.0,2.30408379]
[1723915916945,1e-08,59706.0,59705.0,2.3560807]
[1723915917219,1e-08,59706.0,59705.0,2.25639011]
[1723915917418,1e-08,59706.0,59705.0,2.38100334]
[1723915917724,1e-08,59706.0,59705.0,2.38118087]
[1723915917898,1e-08,59706.0,59705.0,2.44827987]
[1723915918048,1e-08,59706.0,59705.0,2.44828001]
[1723915918248,1e-08,59706.0,59705.0,2.32348925]
[1723915919415,1e-08,59706.0,59705.0,2.32348862]
[1723915920153,1e-08,59706.0,59705.0,2.38418862]
[1723915920340,1e-08,59706.0,59705.0,2.53393754]
[1723915920891,1e-08,59706.0,59705.0,3.77671063]
[1723915921087,1e-08,59706.0,59705.0,4.39166062]
[1723915921287,4e-07,59711.0,59710.0,1.757377]
[1723915921517,4e-07,59711.0,59710.0,4.51925798]
[1723915921724,4e-07,59711.0,59710.0,5.13677892]
[1723915921921,4e-07,59711.0,59710.0,5.38799292]
[1723915922521,4e-07,59711.0,59710.0,5.40199292]
[1723915922743,4e-07,59711.0,59710.0,5.41599292]
[1723915922953,4e-07,59711.0,59710.0,5.40199292]
[1723915923303,4e-07,59711.0,59710.0,5.41599292]
[1723915923933,4e-07,59711.0,59710.0,5.40199292]
[1723915924436,4e-07,59711.0,59710.0,5.41599292]
[1723915925381,4e-07,59711.0,59710.0,5.42586378]
[1723915926199,4e-07,59711.0,59710.0,5.28411378]
[1723915926403,4e-07,59711.0,59710.0,4.95644956]
[1723915926557,4e-07,59711.0,59710.0,4.95844956]
[1723915926765,4e-07,59711.0,59710.0,3.83491268]
[1723915927263,4e-07,59711.0,59710.0,3.82091268]
[1723915927669,4e-07,59711.0,59710.0,3.30076918]
[1723915927869,4e-07,59711.0,59710.0,3.32376918]
[1723915928268,0.144,59716.0,59715.0,0.126596]
[1723915928469,0.144,59716.0,59715.0,1.62330164]
[1723915928664,0.144,59716.0,59715.0,1.54630773]
[1723915928909,0.144,59716.0,59715.0,1.46643115]
[1723915929155,0.144,59716.0,59715.0,1.54146985]
[1723915929535,0.144,59716.0,59715.0,1.03333177]
[1723915929735,0.144,59716.0,59715.0,1.15892777]
[1723915930319,0.144,59716.0,59715.0,1.25892777]
[1723915930568,0.144,59716.0,59715.0,1.24992777]
[1723915930764,0.144,59716.0,59715.0,0.67715254]
[1723915933126,0.144,59716.0,59715.0,0.655982]
[1723915933277,0.144,59716.0,59715.0,0.67715017]
[1723915934056,0.144,59716.0,59715.0,0.67714951]
[1723915937648,0.144,59716.0,59715.0,0.67714782]
[1723915937852,0.144,59716.0,59715.0,1.10089536]
[1723915938059,0.144,59716.0,59715.0,1.12389536]
[1723915938264,0.144,59716.0,59715.0,1.60127029]
[1723915939200,0.144,59716.0,59715.0,1.70127029]
[1723915939408,0.144,59716.0,59715.0,1.62623159]
[1723915939609,0.144,59716.0,59715.0,1.7512793]
[1723915940342,0.144,59716.0,59715.0,1.62623159]
[1723915940723,0.144,59716.0,59715.0,1.75128838]
[1723915941302,0.144,59716.0,59715.0,2.00248138]
[1723915941510,0.144,59716.0,59715.0,1.75128838]
[1723915942102,0.0818,59716.0,59715.0,1.75128838]
[1723915942213,0.0818,59716.0,59715.0,1.75128529]
[1723915942737,0.0818,59716.0,59715.0,1.75128736]
[1723915943143,0.000825,59716.0,59715.0,1.62623057]
[1723915943553,0.000825,59716.0,59715.0,1.70913034]
[1723915943796,0.000825,59716.0,59715.0,1.96032334]
[1723915944802,1e-08,59716.0,59715.0,1.96552169]
[1723915945127,1e-08,59716.0,59715.0,2.11570115]
[1723915945346,1e-08,59716.0,59715.0,2.48565464]
[1723915946110,1e-08,59716.0,59715.0,2.48765464]
[1723915946313,1e-08,59716.0,59715.0,2.48565464]
[1723915946514,1e-08,59716.0,59715.0,2.40675464]
[1723915949640,1e-08,59716.0,59715.0,2.48565464]
[1723915949843,1e-08,59716.0,59715.0,2.73884764]
[1723915950018,1e-08,59716.0,59715.0,2.55155464]
[1723915950627,1e-08,59716.0,59715.0,2.80274764]
[1723915950841,1e-08,59716.0,59715.0,2.55155464]
[1723915951262,1e-08,59716.0,59715.0,2.5515476]
[1723915952487,1e-08,59716.0,59715.0,2.8027406]
[1723915952722,1e-08,59716.0,59715.0,2.80266585]
[1723915954398,1e-08,59716.0,59715.0,2.28257651]
[1723915954603,1e-08,59716.0,59715.0,2.80266727]
[1723915954802,1e-08,59716.0,59715.0,2.28257793]
[1723915955001,1e-08,59716.0,59715.0,2.80266727]
[1723915955201,1e-08,59716.0,59715.0,2.28257791]
[1723915955419,1e-08,59716.0,59715.0,2.49030423]
[1723915955577,1e-08,59716.0,59715.0,2.03137399]
[1723915955916,1e-08,59716.0,59715.0,2.03137386]
[1723915956106,1e-08,59716.0,59715.0,2.55146318]
[1723915956406,1e-08,59716.0,59715.0,2.03137386]
[1723915956607,1e-08,59716.0,59715.0,2.55146318]
[1723915956806,1e-08,59716.0,59715.0,2.03228026]
[1723915957011,1e-08,59716.0,59715.0,2.55236883]
[1723915957222,1e-08,59716.0,59715.0,2.03227951]
[1723915957415,1e-08,59716.0,59715.0,2.80356183]
[1723915957566,1e-08,59716.0,59715.0,2.28347251]
[1723915957914,1e-08,59716.0,59715.0,2.80356183]
[1723915958159,1e-08,59716.0,59715.0,2.28347251]
[1723915958433,1e-08,59716.0,59715.0,2.80356183]
[1723915958660,1e-08,59716.0,59715.0,2.28347251]
[1723915958945,1e-08,59716.0,59715.0,2.80356183]
[1723915959143,1e-08,59716.0,59715.0,2.28347251]
[1723915959355,1e-08,59716.0,59715.0,2.80356183]
[1723915959522,1e-08,59716.0,59715.0,2.28347251]
[1723915959723,0.0002,59719.0,59718.0,1.13131]
[1723915959926,0.0002,59719.0,59718.0,2.08231894]
[1723915960109,0.0002,59719.0,59718.0,2.09151511]
[1723915960311,0.0002,59719.0,59718.0,2.09351511]
[1723915960550,0.0002,59719.0,59718.0,2.09151511]
[1723915961172,0.0002,59719.0,59718.0,2.10551511]
[1723915961527,0.0002,59719.0,59718.0,2.10751511]
[1723915961658,0.0002,59719.0,59718.0,2.10551511]
[1723915962043,0.0002,59719.0,59718.0,2.50499511]
[1723915962247,0.0002,59719.0,59718.0,2.25581511]
[1723915962527,0.0002,59719.0,59718.0,2.25181511]
[1723915962648,0.0002,59719.0,59718.0,2.25381511]
[1723915963090,0.0002,59719.0,59718.0,2.26781511]
[1723915963545,0.0002,59719.0,59718.0,2.20665691]
[1723915963728,0.0002,59719.0,59718.0,2.26781403]
[1723915963948,0.0002,59719.0,59718.0,2.13812559]
[1723915965585,0.0002,59719.0,59718.0,2.38930559]
[1723915965793,0.0002,59719.0,59718.0,2.54147334]
[1723915966209,0.0002,59719.0,59718.0,2.39130559]
[1723915966411,0.0002,59719.0,59718.0,2.9698874]
[1723915966611,0.0002,59719.0,59718.0,3.01773135]
[1723915966811,0.0002,59719.0,59718.0,2.48365833]
[1723915967018,0.0002,59719.0,59718.0,2.43581438]
[1723915967234,0.0002,59719.0,59718.0,2.44981438]
[1723915967399,0.0002,59719.0,59718.0,2.64781876]
[1723915967607,0.0002,59719.0,59718.0,2.48029725]
[1723915967805,0.0002,59719.0,59718.0,2.59997569]
[1723915968011,0.0002,59719.0,59718.0,2.55997472]
[1723915968216,0.0002,59719.0,59718.0,2.64782436]
[1723915968667,0.0002,59719.0,59718.0,2.64382436]
[1723915968862,0.0002,59719.0,59718.0,2.49752436]
[1723915969062,0.0002,59719.0,59718.0,2.40967472]
[1723915969266,0.0002,59719.0,59718.0,2.39116226]
[1723915969683,0.0002,59719.0,59718.0,2.24100183]
[1723915969901,0.0002,59719.0,59718.0,2.42865885]
[1723915970226,0.001025,59719.0,59718.0,2.17747885]
[1723915970427,0.001025,59719.0,59718.0,2.32774272]
[1723915971092,0.001025,59719.0,59718.0,2.32774295]
[1723915971874,0.001025,59719.0,59718.0,2.32780434]
[1723915972364,0.001025,59719.0,59718.0,2.33180434]
[1723915973306,0.001025,59719.0,59718.0,2.32780434]
[1723915974313,0.001025,59719.0,59718.0,2.3436999]
[1723915974728,0.08655,59722.0,59721.0,1.131251]
[1723915974948,0.08655,59722.0,59721.0,1.91705068]
[1723915975776,0.08655,59722.0,59721.0,1.91705144]
[1723915975966,0.08655,59722.0,59721.0,1.91705094]
[1723915976339,0.08655,59722.0,59721.0,1.93105094]
[1723915976538,0.08655,59722.0,59721.0,1.94505094]
[1723915980090,0.08655,59722.0,59721.0,1.82528746]
[1723915980277,0.08655,59722.0,59721.0,1.94505093]
[1723915982402,0.08655,59722.0,59721.0,2.61538108]
[1723915982807,0.08655,59722.0,59721.0,2.0953064]
[1723915983014,0.08655,59722.0,59721.0,2.61538006]
[1723915983664,0.08655,59722.0,59721.0,2.61554078]
[1723915984293,0.08655,59722.0,59721.0,2.4651228]
[1723915984743,0.14695,59722.0,59721.0,1.61132044]
[1723915984980,0.14695,59722.0,59721.0,1.60211789]
[1723915985355,0.14695,59722.0,59721.0,1.61132115]
[1723915985554,0.14695,59722.0,59721.0,2.5190068]
[1723915985794,0.14695,59722.0,59721.0,2.5330068]
[1723915985999,0.08655,59722.0,59721.0,2.5330068]
[1723915986213,0.08655,59722.0,59721.0,2.5200068]
[1723915986214,0.00825,59722.0,59721.0,2.5200068]
[1723915986428,0.00825,59722.0,59721.0,2.76414224]
[1723915986628,0.00825,59722.0,59721.0,2.70558052]
[1723915986832,0.00825,59722.0,59721.0,2.95674752]
[1723915987062,0.00825,59722.0,59721.0,3.03450228]
[1723915987314,0.00825,59722.0,59721.0,3.22860382]
[1723915987552,0.00825,59722.0,59721.0,3.24260382]
[1723915987790,0.00825,59722.0,59721.0,3.25860382]
[1723915988053,0.00825,59722.0,59721.0,3.23060382]
[1723915988304,0.00825,59722.0,59721.0,3.02240675]
[1723915988958,0.00825,59722.0,59721.0,3.01840675]
[1723915989395,0.00825,59722.0,59721.0,3.03240675]
[1723915989771,0.0761,59729.0,59728.0,1.131121]
[1723915989972,0.0761,59729.0,59728.0,1.82611651]
[1723915990877,0.0761,59729.0,59728.0,1.84011651]
[1723915991079,0.0761,59729.0,59728.0,1.85410923]
[1723915992040,0.0761,59729.0,59728.0,1.94720923]
[1723915992246,0.06865,59731.0,59730.0,1.131085]
[1723915992452,0.06865,59731.0,59730.0,1.72607322]
[1723915992603,0.06865,59731.0,59730.0,1.72606832]
[1723915993451,0.06865,59731.0,59730.0,1.74006832]
[1723915993653,0.06865,59731.0,59730.0,1.75406832]
[1723915993853,0.06865,59731.0,59730.0,1.72324959]
[1723915996807,0.06865,59731.0,59730.0,1.70208381]
[1723915997007,0.06865,59731.0,59730.0,1.72325407]
[1723915998004,0.06865,59731.0,59730.0,1.75862621]
[1723915998623,0.06865,59731.0,59730.0,1.85172621]
[1723915998761,0.06865,59731.0,59730.0,1.81635407]
[1723915999800,0.06865,59731.0,59730.0,1.72225407]
[1723915999993,0.14415,59731.0,59730.0,1.56422407]
[1723916000201,0.14415,59731.0,59730.0,1.68951498]
[1723916001441,0.14415,59731.0,59730.0,1.56422407]
[1723916002825,0.14415,59731.0,59730.0,1.68951052]
[1723916004519,0.14415,59731.0,59730.0,1.49291019]
[1723916005744,0.14415,59731.0,59730.0,1.14868019]
[1723916006067,0.14415,59731.0,59730.0,0.67699526]
[1723916006214,0.14415,59731.0,59730.0,0.7271235]
[1723916006424,0.14415,59731.0,59730.0,0.72712373]
[1723916006625,0.14415,59731.0,59730.0,0.67699526]
[1723916006850,0.14415,59731.0,59730.0,0.67799526]
[1723916007356,0.14415,59731.0,59730.0,0.67800041]
[1723916008111,0.14415,59731.0,59730.0,0.10030549]
[1723916008315,0.582702,59731.0,59730.0,0.029]
[1723916008515,0.833827,59731.0,59730.0,0.029]
[1723916009077,0.771962,59731.0,59730.0,0.029]
[1723916009284,0.771962,59731.0,59730.0,0.015]
[1723916009650,0.771962,59731.0,59730.0,0.027]
[1723916010622,0.771962,59731.0,59730.0,0.013]
[1723916010837,1.023087,59731.0,59730.0,0.025]
[1723916012374,1.02304552,59731.0,59730.0,0.025]
[1723916012575,1.02304552,59731.0,59730.0,0.013]
[1723916012824,1.02504552,59731.0,59730.0,0.001]
[1723916012998,0.77392052,59731.0,59730.0,0.001]
[1723916013217,0.77692052,59731.0,59730.0,0.002]
[1723916014179,0.77192052,59731.0,59730.0,0.001]
[1723916014295,0.77392052,59731.0,59730.0,0.001]
[1723916014974,0.77792052,59731.0,59730.0,0.001]
[1723916015659,0.77592052,59731.0,59730.0,0.001]
[1723916015856,0.77792052,59731.0,59730.0,0.001]
[1723916016343,0.77192052,59731.0,59730.0,0.001]
[1723916016557,0.77492052,59731.0,59730.0,0.001]
[1723916016783,0.77792052,59731.0,59730.0,0.001]
[1723916017248,0.78092052,59731.0,59730.0,0.001]
[1723916018339,1.03304552,59731.0,59730.0,0.001]
[1723916019249,1.0612617,59731.0,59730.0,0.001]
[1723916019470,1.03504552,59731.0,59730.0,0.001]
[1723916019692,1.06126162,59731.0,59730.0,0.001]
[1723916019919,1.05826162,59731.0,59730.0,0.001]
[1723916020138,1.03204552,59731.0,59730.0,0.001]
[1723916020818,1.03204552,59731.0,59730.0,0.0019075]
[1723916026082,1.03504552,59731.0,59730.0,0.0019075]
[1723916027114,1.03204552,59731.0,59730.0,0.0019075]
[1723916031719,1.12514552,59731.0,59730.0,0.0019075]
[1723916034398,1.12614552,59731.0,59730.0,0.0019075]
[1723916034608,1.12514552,59731.0,59730.0,0.0019075]
[1723916034810,1.12814552,59731.0,59730.0,0.0019075]
[1723916035348,1.12514552,59731.0,59730.0,0.0019075]
[1723916035752,1.12614552,59731.0,59730.0,0.0019075]
[1723916035953,1.12514552,59731.0,59730.0,0.0019075]
[1723916036153,1.12614552,59731.0,59730.0,0.0019075]
[1723916036359,1.17736191,59731.0,59730.0,0.0019075]
[1723916037251,1.27736191,59731.0,59730.0,0.0019075]
[1723916037601,1.52848691,59731.0,59730.0,0.0019075]
[1723916037972,1.27736191,59731.0,59730.0,0.0019075]
[1723916038125,1.27436191,59731.0,59730.0,0.0019075]
[1723916038658,1.24814552,59731.0,59730.0,0.0019075]
[1723916039212,1.27536007,59731.0,59730.0,0.0019075]
[1723916039811,1.27736007,59731.0,59730.0,0.0019075]
[1723916041815,1.44891461,59731.0,59730.0,0.0019075]
[1723916042302,1.27736007,59731.0,59730.0,0.0019075]
[1723916044735,1.52948507,59731.0,59730.0,0.0019075]
[1723916044935,1.53048507,59731.0,59730.0,0.0019075]
[1723916053778,1.25659913,59731.0,59730.0,0.0019075]
[1723916053941,1.18126007,59731.0,59730.0,0.0019075]
[1723916054169,1.25659913,59731.0,59730.0,0.0019075]
[1723916054330,1.18126007,59731.0,59730.0,0.0019075]
[1723916055132,1.27436007,59731.0,59730.0,0.0019075]
[1723916055331,1.17324255,59731.0,59730.0,0.0019075]
[1723916055532,0.92236007,59731.0,59730.0,0.0019075]
[1723916057418,0.92236007,59731.0,59730.0,0.0642075]
[1723916057999,0.92236007,59731.0,59730.0,0.0019075]
[1723916060412,0.67123507,59731.0,59730.0,0.0019075]
[1723916061286,0.16898507,59731.0,59730.0,0.1413075]
[1723916061970,0.16898507,59731.0,59730.0,0.5180025]
[1723916061971,0.01720852,59731.0,59730.0,0.5180025]
[1723916062170,0.01720852,59731.0,59730.0,0.7691325]
[1723916062576,0.01720852,59731.0,59730.0,0.2668725]
[1723916063012,0.01420852,59731.0,59730.0,0.1413075]
[1723916063232,0.01420852,59731.0,59730.0,0.2668725]
[1723916063691,0.00820852,59731.0,59730.0,0.2668725]
[1723916063921,0.00920852,59731.0,59730.0,0.2668725]
[1723916064142,0.00920852,59731.0,59730.0,0.5180025]
[1723916066907,0.00920852,59731.0,59730.0,0.2668725]
[1723916070070,0.00920852,59731.0,59730.0,0.1413075]
[1723916070668,0.13477052,59731.0,59730.0,0.1413075]
[1723916071265,0.78112052,59731.0,59730.0,0.0019075]
[1723916071673,1.05845945,59731.0,59730.0,0.0019075]
[1723916071876,1.05945945,59731.0,59730.0,0.0019075]
[1723916072077,1.05845945,59731.0,59730.0,0.0019075]
[1723916072573,1.15155945,59731.0,59730.0,0.0019075]
[1723916073405,1.31439405,59731.0,59730.0,0.0019075]
[1723916073613,1.38973116,59731.0,59730.0,0.0019075]
[1723916075000,1.39073116,59731.0,59730.0,0.0019075]
[1723916075201,1.64185616,59731.0,59730.0,0.0019075]
[1723916075360,1.58951905,59731.0,59730.0,0.0019075]
[1723916075566,1.42668445,59731.0,59730.0,0.0019075]
[1723916076169,1.52913394,59731.0,59730.0,0.0019075]
[1723916077886,1.52613673,59731.0,59730.0,0.0019075]
[1723916078219,1.42568445,59731.0,59730.0,0.0019075]
[1723916078569,1.52713673,59731.0,59730.0,0.0019075]
[1723916078771,1.57917945,59731.0,59730.0,0.0019075]
[1723916079234,1.47872717,59731.0,59730.0,0.0019075]
[1723916080025,1.42868445,59731.0,59730.0,0.0019075]
[1723916081179,1.6552498,59731.0,59730.0,0.0019075]
[1723916081377,1.53068445,59731.0,59730.0,0.0019075]
[1723916082421,1.65624053,59731.0,59730.0,0.0019075]
[1723916082614,1.78180945,59731.0,59730.0,0.0019075]
[1723916082973,1.96326414,59731.0,59730.0,0.0019075]
[1723916083175,2.11393143,59731.0,59730.0,0.0019075]
[1723916083575,2.11293143,59731.0,59730.0,0.0019075]
[1723916083787,2.11293143,59731.0,59730.0,0.0029075]
[1723916083788,2.11593143,59731.0,59730.0,0.0029075]
[1723916083990,1.94737689,59731.0,59730.0,0.0039075]
[1723916084444,1.7967096,59731.0,59730.0,0.0039075]
[1723916086036,1.6996096,59731.0,59730.0,0.0039075]
[1723916086237,1.7016096,59731.0,59730.0,0.0039075]
[1723916087015,1.7036096,59731.0,59730.0,0.0039075]
[1723916087845,1.87516414,59731.0,59730.0,0.0039075]
[1723916090219,1.96826414,59731.0,59730.0,0.0039075]
[1723916090948,1.7967096,59731.0,59730.0,0.0039075]
[1723916093500,1.5455846,59731.0,59730.0,0.0039075]
[1723916096161,1.79962896,59731.0,59730.0,0.0039075]
[1723916096368,1.7967096,59731.0,59730.0,0.0039075]
[1723916098672,1.5455846,59731.0,59730.0,0.0039075]
[1723916099996,1.14477269,59731.0,59730.0,0.0039075]
[1723916100207,1.01935945,59731.0,59730.0,0.0809075]
[1723916100394,0.91935945,59731.0,59730.0,0.0809075]
[1723916100923,1.01245945,59731.0,59730.0,0.1451075]
[1723916102188,1.00945945,59731.0,59730.0,0.1441075]
[1723916102769,1.00945945,59731.0,59730.0,0.0029075]
[1723916102770,1.1404054,59731.0,59730.0,0.0029075]
[1723916103000,1.1374054,59731.0,59730.0,0.0019075]
[1723916103240,1.2419054,59731.0,59730.0,0.0019075]
[1723916103448,1.2479054,59731.0,59730.0,0.0029075]
[1723916103601,1.2489054,59731.0,59730.0,0.0039075]
[1723916103806,1.5000304,59731.0,59730.0,0.0039075]
[1723916103981,1.79644364,59731.0,59730.0,0.0039075]
[1723916104399,1.8476304,59731.0,59730.0,0.0039075]
[1723916105030,1.97303877,59731.0,59730.0,0.0039075]
[1723916107336,1.98282622,59731.0,59730.0,0.0039075]
[1723916107770,1.85741785,59731.0,59730.0,0.0039075]
[1723916108304,1.4557719,59731.0,59730.0,0.0039075]
[1723916108505,1.3867719,59731.0,59730.0,0.0039075]
[1723916108708,1.3897719,59731.0,59730.0,0.0039075]
[1723916108971,1.29448445,59731.0,59730.0,0.0039075]
[1723916109760,0.92035945,59731.0,59730.0,0.1451075]
[1723916110004,1.01345945,59731.0,59730.0,0.1451075]
[1723916110964,1.03645945,59731.0,59730.0,0.1451075]
[1723916112374,1.01345945,59731.0,59730.0,0.1451075]
[1723916113590,1.01445945,59731.0,59730.0,0.0039075]
[1723916113798,1.14714537,59731.0,59730.0,0.0039075]
[1723916114474,1.22243772,59731.0,59730.0,0.0039075]
[1723916114673,1.14914537,59731.0,59730.0,0.0039075]
[1723916114878,1.50027037,59731.0,59730.0,0.0039075]
[1723916115089,1.58177037,59731.0,59730.0,0.0039075]
[1723916115290,1.82437037,59731.0,59730.0,0.0039075]
[1723916118092,1.96437037,59731.0,59730.0,0.0039075]
[1723916119005,1.85659445,59731.0,59730.0,0.0039075]
[1723916119629,1.52849445,59731.0,59730.0,0.0039075]
[1723916120248,1.53049445,59731.0,59730.0,0.0039075]
[1723916120450,1.65609271,59731.0,59730.0,0.0039075]
[1723916120656,1.65609344,59731.0,59730.0,0.0039075]
[1723916121066,1.53049445,59731.0,59730.0,0.0039075]
[1723916123098,1.29439445,59731.0,59730.0,0.0039075]
[1723916123367,1.29439445,59731.0,59730.0,0.0850075]
[1723916123570,1.42299719,59731.0,59730.0,0.0850075]
[1723916126198,1.29739445,59731.0,59730.0,0.0850075]
[1723916126416,1.42299979,59731.0,59730.0,0.0850075]
[1723916126537,1.42299979,59731.0,59730.0,0.0039075]
[1723916127345,1.41999979,59731.0,59730.0,0.0039075]
[1723916127568,1.29439445,59731.0,59730.0,0.0039075]
[1723916128250,1.04326945,59731.0,59730.0,0.0666075]
[1723916128456,1.14375305,59731.0,59730.0,0.0666075]
[1723916130212,1.14475305,59731.0,59730.0,0.0666075]
[1723916130419,1.22505548,59731.0,59730.0,0.0039075]
[1723916130625,1.45815548,59731.0,59730.0,0.0039075]
[1723916130824,1.45815292,59731.0,59730.0,0.0039075]
[1723916131027,1.37685049,59731.0,59730.0,0.0039075]
[1723916132246,1.12075049,59731.0,59730.0,0.0850075]
[1723916132579,1.02026945,59731.0,59730.0,0.1477075]
[1723916136039,1.09562901,59731.0,59730.0,0.1477075]
[1723916137177,1.02026945,59731.0,59730.0,0.1477075]
[1723916138070,1.09562901,59731.0,59730.0,0.1477075]
[1723916140037,1.18882901,59731.0,59730.0,0.1477075]
[1723916140238,1.18882901,59731.0,59730.0,0.0039075]
[1723916140239,1.51655401,59731.0,59730.0,0.0039075]
[1723916140457,1.58979371,59731.0,59730.0,0.0039075]
[1723916140642,1.46319445,59731.0,59730.0,0.0039075]
[1723916141441,1.46419445,59731.0,59730.0,0.0039075]
[1723916141649,1.46619445,59731.0,59730.0,0.0039075]
[1723916142477,1.47619313,59731.0,59730.0,0.0039075]
[1723916142859,1.63951922,59731.0,59730.0,0.0039075]
[1723916144936,2.04336334,59731.0,59730.0,0.0039075]
[1723916145183,1.53849313,59731.0,59730.0,0.0039075]
[1723916145434,1.78961813,59731.0,59730.0,0.0039075]
[1723916145640,1.53849313,59731.0,59730.0,0.0039075]
[1723916145845,1.53549313,59731.0,59730.0,0.0029075]
[1723916146051,1.53149313,59731.0,59730.0,0.0019075]
[1723916146252,1.68528055,59731.0,59730.0,0.0029075]
[1723916146655,1.68228055,59731.0,59730.0,0.0019075]
[1723916147075,1.68528055,59731.0,59730.0,0.0029075]
[1723916147360,1.68527425,59731.0,59730.0,0.0029075]
[1723916147567,1.68527584,59731.0,59730.0,0.0029075]
[1723916148193,1.54549313,59731.0,59730.0,0.0039075]
[1723916148399,1.69627831,59731.0,59730.0,0.0039075]
[1723916149389,1.54549313,59731.0,59730.0,0.0039075]
[1723916149553,1.69627824,59731.0,59730.0,0.0039075]
[1723916150388,1.54549313,59731.0,59730.0,0.0039075]
[1723916150793,1.69627999,59731.0,59730.0,0.0039075]
[1723916153326,1.54549313,59731.0,59730.0,0.0039075]
[1723916153744,1.6962778,59731.0,59730.0,0.0039075]
[1723916154784,1.54549313,59731.0,59730.0,0.0039075]
[1723916155409,1.72209313,59731.0,59730.0,0.0039075]
[1723916157391,1.54349313,59731.0,59730.0,0.0039075]
[1723916157589,1.48319313,59731.0,59730.0,0.0039075]
[1723916159542,1.48419313,59731.0,59730.0,0.0039075]
[1723916159746,1.66179313,59731.0,59730.0,0.0039075]
[1723916160403,1.66079313,59731.0,59730.0,0.0039075]
[1723916161097,1.65979313,59731.0,59730.0,0.0039075]
[1723916161322,1.33006813,59731.0,59730.0,0.1476075]
[1723916161645,1.33306813,59731.0,59730.0,0.1476075]
[1723916161873,1.58419313,59731.0,59730.0,0.1476075]
[1723916162292,1.33006813,59731.0,59730.0,0.1476075]
[1723916162495,1.33306813,59731.0,59730.0,0.1476075]
[1723916163252,1.33306813,59731.0,59730.0,0.0039075]
[1723916164631,1.33006813,59731.0,59730.0,0.0039075]
[1723916166071,1.33306813,59731.0,59730.0,0.0039075]
[1723916166948,1.15346813,59731.0,59730.0,0.0039075]
[1723916167409,1.15346813,59731.0,59730.0,0.0663075]
[1723916167823,1.15646813,59731.0,59730.0,0.0663075]
[1723916167994,1.15346813,59731.0,59730.0,0.0663075]
[1723916168198,1.15446813,59731.0,59730.0,0.0663075]
[1723916168607,1.15646813,59731.0,59730.0,0.0039075]
[1723916170520,1.15346813,59731.0,59730.0,0.0039075]
[1723916171163,1.15446813,59731.0,59730.0,0.0039075]
[1723916171400,1.15646813,59731.0,59730.0,0.0039075]
[1723916176002,1.36103879,59731.0,59730.0,0.0039075]
[1723916178576,1.15346813,59731.0,59730.0,0.0039075]
[1723916180007,1.40759313,59731.0,59730.0,0.0039075]
[1723916180225,1.15646813,59731.0,59730.0,0.0039075]
[1723916180607,1.40759313,59731.0,59730.0,0.0039075]
[1723916180814,1.15346813,59731.0,59730.0,0.0039075]
[1723916181654,1.06026813,59731.0,59730.0,0.0669075]
[1723916181847,1.06026813,59731.0,59730.0,0.1445075]
[1723916182627,1.08653916,59731.0,59730.0,0.1445075]
[1723916182875,1.17973916,59731.0,59730.0,0.1445075]
[1723916185824,1.18073916,59731.0,59730.0,0.0039075]
[1723916187356,1.18273916,59731.0,59730.0,0.0039075]
[1723916187534,1.20524045,59731.0,59730.0,0.0039075]
[1723916188194,1.18273916,59731.0,59730.0,0.0039075]
[1723916188927,1.17973916,59731.0,59730.0,0.0039075]
[1723916189757,1.50936416,59731.0,59730.0,0.0039075]
[1723916189958,1.9023299,59731.0,59730.0,0.0039075]
[1723916190158,1.75156416,59731.0,59730.0,0.0039075]
[1723916190398,1.9231187,59731.0,59730.0,0.0039075]
[1723916193546,2.1742437,59731.0,59730.0,0.0039075]
[1723916195759,1.605415,59723.0,59722.0,0.0009075]
[1723916196013,1.83012893,59723.0,59722.0,0.0009075]
[1723916196214,2.00168347,59723.0,59722.0,0.0009075]
[1723916196422,2.45991122,59723.0,59722.0,0.0009075]
[1723916196622,2.62931433,59723.0,59722.0,0.0009075]
[1723916196821,2.28835668,59723.0,59722.0,0.0009075]
[1723916197021,2.29035668,59723.0,59722.0,0.0009075]
[1723916197390,2.28835668,59723.0,59722.0,0.0009075]